Cogmind - Beta 10.2 @@@ ROGUE MODE // 2021.03.20 @ 12:45:15 Player: Ved Result: Destroyed by G-34 Mercenary with Small Laser Performance ------------- Evolutions (1) 500 Regions Visited (2) 400 Robots Destroyed (16) 80 Value Destroyed (485) 485 Prototype IDs (0) 0 Alien Tech Used (0) 0 Bonus (0) 0 TOTAL SCORE: 1465 Bonus ------- None Cogmind --------- Core Integrity 0/400 Matter 300/300 Energy 100/100 System Corruption 0% Temperature Cool (6) Movement Core (550) Ox10 Location -9/Materials Parts ------- > --- POWER (2) -------- (None) > --- PROPULSION (3) --- (None) > --- UTILITY (2) ------ High-capacity Storage Unit > --- WEAPON (2) ------- (None) > --- INVENTORY (12) --- Improved Aluminum Leg Improved Aluminum Leg Heat Sink High-capacity Storage Unit Improved Signal Interpreter Terrain Scan Processor Shield Generator Shield Generator Particle Gun Assault Rifle Light Assault Rifle Peak State ------------ > --- POWER ------------ Ion Engine Light Nuclear Core > --- PROPULSION ------- Cesium-ion Thruster Cesium-ion Thruster Cesium-ion Thruster > --- UTILITY ---------- Heat Sink High-capacity Storage Unit > --- WEAPON ----------- Small Laser Small Laser > --- INVENTORY -------- Improved Aluminum Leg Improved Aluminum Leg Heat Sink High-capacity Storage Unit Improved Signal Interpreter Terrain Scan Processor Shield Generator Shield Generator Particle Gun Assault Rifle Light Assault Rifle [Rating: 18] Favorites ----------- Power Ion Engine Engine Ion Engine Power Core Light Nuclear Core Propulsion Aluminum Leg Leg Aluminum Leg Flight Unit Cesium-ion Thruster Utility Heat Sink Device Heat Sink Storage High-capacity Storage Unit Weapon Small Laser Energy Gun Small Laser Ballistic Gun Assault Rifle Build | -11 -10 -9 ------- Run | Scr Mat Mat Slots Evolved 2 | . . 2 Power 1 | . . 1 Propulsion 1 | . . 1 Utility . | . . . Weapon . | . . . Parts Attached 26 | 6 3 17 Power 7 | 1 . 6 Engine 6 | 1 . 5 Core 1 | . . 1 Reactor . | . . . Propulsion 8 | 2 . 6 Treads . | . . . Leg 5 | 2 . 3 Wheel . | . . . Hover . | . . . Flight 3 | . . 3 Utility 4 | 1 2 1 Device 2 | 1 . 1 Storage 2 | . 2 . Processor . | . . . Hackware . | . . . Protection . | . . . Artifact . | . . . Weapon 7 | 2 1 4 Energy Gun 6 | 1 1 4 Energy Cannon . | . . . Ballistic Gun 1 | 1 . . Ballistic Cannon . | . . . Launcher . | . . . Special Weapon . | . . . Impact Weapon . | . . . Slashing Weapon . | . . . Piercing Weapon . | . . . Special Melee Weapon . | . . . Unidentified Prototypes . | . . . Parts Lost 11 | . 1 10 Power 3 | . . 3 Propulsion 3 | . . 3 Utility 1 | . . 1 Weapon 4 | . 1 3 Highest Loss Streak 8 | . 1 8 Average Slot Usage (%) 91 | . 92 91 Engine 15 | . 14 16 Core 2 | . . 3 Leg 27 | . 28 27 Flight 1 | . . 2 Device 10 | . 14 10 Storage 10 | . 9 11 Energy Gun 15 | . 11 16 Ballistic Gun 4 | . 14 2 Naked Turns . | . . . Heaviest Build 51 | 8 40 51 Greatest Support 30 | 20 20 30 Greatest Overweight (x) 14 | . 1 14 Average Overweight (x) . | . . 1 Largest Inventory Capacity 12 | 4 12 12 Average Capacity 10 | 4 8 12 Most Carried 12 | 3 12 12 Average Carried 9 | 2 5 11 Final Capacity 12 | 4 12 12 Final Carried 12 | 3 12 11 Class Distribution -------------------- 56% | Scavenger-Mutant 43% | Mutant Dominant Class ---------------- Mutant | -10/Materials Scavenger-Mutant | -9/Materials Resources | -11 -10 -9 ----------- Run | Scr Mat Mat Matter Collected 477 | 278 24 175 Remotely . | . . . Salvage Created 649 | 46 49 554 Parts 37 | 1 4 32 Haulers Intercepted . | . . . Recyclers Shooed . | . . . Parts Field Recycled . | . . . Retrieved Matter . | . . . Parts Self-Destructed . | . . . Prevented . | . . . Kills | -11 -10 -9 ------- Run | Scr Mat Mat Combat Hostiles Destroyed 16 | 1 1 14 Guns 16 | 1 1 14 Classes Destroyed 4 | 1 . 3 Swarmer 4 | . . 4 Grunt 9 | 1 1 7 Brawler 1 | . . 1 Sentry 2 | . . 2 Best Kill Streak 5 | 1 1 5 Combat Bots Only 5 | 1 1 5 Max Kills in Single Turn 1 | 1 1 1 Gunslinging . | . . . Exploded . | . . . Melee . | . . . Uniques/NPCs Destroyed . | . . . Combat | -11 -10 -9 -------- Run | Scr Mat Mat Damage Taken 1441 | 95 46 1300 Core 430 | 12 10 408 Absorbed by Shields . | . . . Core Remaining (%) 93 | 95 91 . Volleys Fired 53 | 6 3 44 Largest 2 | 2 1 2 Hottest 110 | 70 20 110 Shots Fired 103 | 12 3 88 Gun 103 | 12 3 88 Cannon . | . . . Launcher . | . . . Special . | . . . Kinetic 19 | 6 3 10 Thermal 46 | 6 . 40 Explosive . | . . . Electromagnetic 38 | . . 38 Robot Hit Streak 21 | 8 9 21 Robot Miss Streak 5 | 2 1 5 Penetration Max . | . . . Secondary Targets 1 | . . 1 Max Gunslinging Chain 1 | . . 1 Shots Hit Robots 77 | 9 2 66 Core Hits 36 | 2 2 32 Critical Hits . | . . . Critical Kills . | . . . Critical Parts Destroyed . | . . . Melee Attacks . | . . . Impact . | . . . Slashing . | . . . Piercing . | . . . Sneak Attacks . | . . . Combat Hostiles . | . . . Follow-up Attacks . | . . . Damage Inflicted 864 | 111 23 730 Guns 864 | 111 23 730 Cannons . | . . . Explosions . | . . . Melee . | . . . Ramming . | . . . Kinetic 156 | 59 23 74 Thermal 319 | 52 . 267 Explosive . | . . . Electromagnetic 389 | . . 389 Impact . | . . . Slashing . | . . . Piercing . | . . . Highest Corruption . | . . . Average Corruption . | . . . Corruption Purged . | . . . Overload Shots . | . . . Overflow Damage . | . . . Projectiles . | . . . Explosions . | . . . Melee . | . . . Knockbacks . | . . . Impact . | . . . Kinetic . | . . . Secondary . | . . . Self-Inflicted Damage . | . . . Shots . | . . . Rammed . | . . . Targets Rammed . | . . . Kicked . | . . . Crushed . | . . . Highest Temperature 213 | 102 . 213 Average Temperature 63 | 56 . 64 Received Heat Transfer 675 | 48 27 600 Siege Activations . | . . . Robots Corrupted . | . . . Combat Hostiles . | . . . Parts Fried 2 | . . 2 Impact Corruptions . | . . . Robots Melted . | . . . Combat Hostiles . | . . . Parts Melted . | . . . Heat Transferred 643 | 148 . 495 Parts Sabotaged . | . . . Parts Stolen . | . . . Parts Stripped . | . . . Power Chain Reactions . | . . . Missiles Intercepted . | . . . Alert | -11 -10 -9 ------- Run | Scr Mat Mat Peak Influence 215 | 20 38 215 Initial 15 | . 13 15 Average 92 | 2 18 121 Maximum Alert Level 1 | . . 1 Low Security (%) 89 | 100 100 86 Level 1 10 | . . 13 Level 2 . | . . . Level 3 . | . . . Level 4 . | . . . Level 5 . | . . . High Security . | . . . Max Security . | . . . Squads Dispatched 4 | . 1 3 Investigation 1 | . 1 . Extermination . | . . . Reinforcement 3 | . . 3 Assault . | . . . Garrison . | . . . Intercept . | . . . Construction Impeded . | . . . Haulers Reinforced . | . . . Stealth | -11 -10 -9 --------- Run | Scr Mat Mat Distress Signals 1 | . . 1 Communications Jammed . | . . . Distress Signals . | . . . Times Spotted 24 | 1 2 21 Peak Tracking Total 5 | 1 2 5 Tactical Retreats 2 | . 1 1 Traps | -11 -10 -9 ------- Run | Scr Mat Mat Traps Triggered 1 | . 1 . Indirectly . | . . . Trap Hack Attempts . | . . . Triggered . | . . . Disarmed . | . . . Reprogrammed . | . . . Reused . | . . . Traps Extracted . | . . . Installed . | . . . Triggered . | . . . Machines | -11 -10 -9 ---------- Run | Scr Mat Mat Machines Disabled . | . . . Max in Single Turn . | . . . Machines Sabotaged . | . . . Garrisons Compromised . | . . . Overloaded Fab Kills . | . . . Fab Network Shutdowns . | . . . Hacking | -11 -10 -9 --------- Run | Scr Mat Mat Machines Accessed . | . . . Terminals . | . . . Fabricators . | . . . Repair Stations . | . . . Recycling Units . | . . . Scanalyzers . | . . . Garrison Access . | . . . Total Hacks . | . . . Successful . | . . . Failed . | . . . Catastrophic . | . . . Database Lockouts . | . . . Manual . | . . . Terminals . | . . . Fabricators . | . . . Repair Stations . | . . . Recycling Units . | . . . Scanalyzers . | . . . Garrison Access . | . . . Terminal Hacks . | . . . Fabricator Hacks . | . . . Repair Station Hacks . | . . . Recycling Unit Hacks . | . . . Scanalyzer . | . . . Garrison Access Hacks . | . . . Unauthorized Hacks . | . . . Terminals . | . . . Fabricators . | . . . Repair Stations . | . . . Recycling Units . | . . . Scanalyzers . | . . . Garrison Access . | . . . Data Cores Recovered . | . . . Used . | . . . Hacking Detections . | . . . Full Trace Events . | . . . Feedback Events . | . . . Feedback Blocked . | . . . Robot Schematics Acquired . | . . . Robots Built . | . . . Matter . | . . . Time . | . . . Total Robot Build Rating . | . . . Part Schematics Acquired . | . . . Parts Built . | . . . Matter . | . . . Time . | . . . Total Part Build Rating . | . . . Parts Repaired . | . . . Time . | . . . Parts Recycled . | . . . Recycled Matter . | . . . Retrieved Matter . | . . . Retrieved Components . | . . . Parts Scanalyzed . | . . . Part Schematics Acquired . | . . . Parts Damaged . | . . . Bothacking | -11 -10 -9 ------------ Run | Scr Mat Mat Used RIF Installer . | . . . Robots Hacked . | . . . Non-combat . | . . . Combat . | . . . Robot Hacks Applied . | . . . Relay Couplers Released . | . . . Robots Rewired . | . . . Allies Hacked . | . . . Hacks Repelled . | . . . Allies | -11 -10 -9 -------- Run | Scr Mat Mat Total Allies . | . . . Largest Group . | . . . Highest-Rated Group . | . . . Highest-Rated Ally . | . . . Total Orders . | . . . Ally Attacks . | . . . Total Damage . | . . . Kills . | . . . Allies Corrupted . | . . . Allies Melted . | . . . Intel | -11 -10 -9 ------- Run | Scr Mat Mat Robot Analysis Total . | . . . Derelict Logs Recovered . | . . . Drone Launches . | . . . Drone Recoveries . | . . . Exploration | -11 -10 -9 ------------- Run | Scr Mat Mat Turns Passed 1149 | 108 198 843 Spaces Moved 485 | 67 132 286 Core 15 | 14 . 1 Treads . | . . . Legs 464 | 53 132 279 Wheels . | . . . Hover . | . . . Flight 6 | . . 6 Fastest Speed 50 | 50 120 150 Average Speed 141 | 105 131 154 Slowest Speed 750 | 120 150 750 Overloaded Moves . | . . . Propulsion Burnouts . | . . . Robots Hopped . | . . . Cave-ins Triggered . | . . . Exploration Rate (%) 20 | 8 31 23 Regions Visited 2 Branch Regions . Pre-discovered Areas . | . . . Known Exits Taken . | . . . Unknown Exits Taken 2 | 1 1 . Scrap Searched . | . . . Spaces Dug . | . . . Terrain Destroyed . | . . . Melee . | . . . Projectile . | . . . AOE . | . . . Terrain Rammed . | . . . Walls Destroyed . | . . . Machines Disabled . | . . . Actions | -11 -10 -9 --------- Run | Scr Mat Mat Total 841 | 89 153 599 Wait 245 | 8 6 231 Move 483 | 66 131 286 Hop . | . . . Pick Up 18 | 3 9 6 Fast Attach 20 | 6 2 12 Attach 5 | . 1 4 Detach 1 | . 1 . Swap 1 | . . 1 Drop 15 | . . 15 Fire 53 | 6 3 44 Melee . | . . . Ram . | . . . Kick . | . . . Crush . | . . . Escape Stasis . | . . . Rewire . | . . . Trap . | . . . Miscellaneous . | . . . Route ------- -11/Scrapyard -10/Materials -9/Materials History --------- Turn | Location | Event 2 | -11/Scrapyard | Met Revision 17 70 | -11/Scrapyard | Discovered new exit (range 8) 109 | -11/Scrapyard | Entered Materials 287 | -10/Materials | Discovered new exit (range 14) 302 | -10/Materials | Build established: Mutant 307 | -10/Materials | Entered another Materials area 307 | -9/Materials | Evolved 2 slots: Power x1, Propulsion x1 716 | -9/Materials | Build established: Scavenger-Mutant 1101 | -9/Materials | Core integrity fell below 50% 1131 | -9/Materials | Core integrity fell below 20% 1133 | -9/Materials | Lost 8 parts (2p3n1u2w) 1150 | -9/Materials | Destroyed by G-34 Mercenary with Small Laser Last Messages --------------- Acquired 10 matter. K-01 Serf collects debris. Dropped Aluminum Leg. Acquired Cesium-ion Thruster. Flying robots can pass through spaces occupied by others, even hostile robots. K-01 Serf cleans the Terminal. Acquired Cesium-ion Thruster. K-01 Serf cleans the Terminal. Acquired Cesium-ion Thruster. Sml. Laser destroyed. Ion Engine destroyed. Lgt. Nuclear Core destroyed. Cesium-ion Thruster destroyed. Sml. Laser destroyed. Cesium-ion Thruster destroyed. K-01 Serf cleans the Terminal. Cesium-ion Thruster destroyed. Heat Sink destroyed. K-01 Serf cleans the Terminal. Map ----- +----------------------------------------------------+ | ??????????????????????????????????????#""" # " | | ??????????????????????????????????????#""" # " | | ??????????????????????????????######??#""" # " | | ??????????????????????????##### ??# % # | | ?????????????????????????? ??#####+#### " | | ??????????????????????????? ?????#[=! + | | ?????????????????????????? ###### ### | | ??????????????????????????????# #?### | | ???????????????????????????????# #???? | | ???????????????????????????????# #???? | | ???????????????????????????????# #???? | | ??????????????????????????? ??# #???? | | ??????????????????????????? # #???? | | ??????????????????????????? # ########???? | | ??????????????????????????? # #??????????? | | ??????????????????????????? + #??????????? | | ??????????????????????????? ?# #?########## | | ??????????????????????????? ?# #?# # | | ??????????????????????????? ?# #?# """ # | | ??????????????????????????? ?# ###% """"" # | | ???????????????????????????#/#?# % #*=""""" # | | ??????????????????????###### #?# %+%%""""" # | | ??????????????????????#!! ## #?# % #== """ # | | ??????????????????????#!! ## ### ###+#+#= != # | | ??????????????????????#!! w## ## %%+*!* # | | ??????????????????????#!!@ gT k ##" =#[ # | | ??????????????????????#= == ### ##T ########+# | | ??????????????????????# ##%##?# ##" #??????# # | | ??????????????????????######/##?# ## #??????# # | | ??????????????????????# [! #?# ## #??????# # | | ??????????????????????# "S = ## ## #??????# # | | ??????????????????????# """ ### ## #??????# # | | ??????????????????????# "" #?# ## #??????# # | | ??????????????????????# #?# #######??????# # | | ????????????????????? + #?#+#????????????#+# | | ???????????????????? # """ #???????????????== | | ??????????????????? # """"" #????????????? == | | ?????????????????? ?# """"" #???????????# == | | ?????????????????? ??#??"""" #???????????# | | ???????????????????????????" #???????????# """ " | | ????????????????????????????###???????????# """ "R | | ??????????????????????????????????????????# """ "" | | ?????????????????????????????????????????? | | ?????????????????????????????????????????#???##+## | | ?????????????????????????????????????????????????? | | ?????????????????????????????????????????????????? | | ?????????????????????????????????????????????????? | | ?????????????????????????????????????????????????? | | ?????????????????????????????????????????????????? | | ?????????????????????????????????????????????????? | +----------------------------------------------------+ Best States ------------- Heat Dissipation 38 Energy Generation 19 Energy Capacity 415 Matter Stores 300 Matter Capacity 300 Sight Range 16 Terrain Scan Density 10 Evasion (%) 50 Item Schematics ----------------- None Robot Schematics ------------------ None Fabricated ------------ Nothing Alien Tech Used ----------------- None Achievements -------------- None Challenges ------------ None Game ------ Seed ReactionQuantumElectrolaser Manual? 0 Play Time 00:15:27 Cumulative 2.3 hours Start 2021.03.20 @ 12:12:15 End 2021.03.20 @ 12:45:15 Sessions 1 Manual Loads 0 Difficulty Rogue Special Mode None Game No. 2 Rogue 2 Adventurer 0 Explorer 0 Win Type - Total 0 Types 0/0/0/0/0/0/0/0/0 Lore% 0 Gallery% 6 Achievement% 5 Wizard Run 0 Options --------- ASCII 0 Keyboard 0 Movement Numpad Keybinds 0 Fullscreen 0 Font 16/Terminus Map View 76x50 Tactical HUD 0 Map Filters NONE Filters NONE Steam 0 RUN: 96741d4e-7595-45a4-9ec7-c320a1671dba